lending/lending_fUSD_20250121
["ID","MTS","AMOUNT","RATE_DAILY","PERIOD"]
[349793698,1737432648845,-1264.66,0.00020547,2]
[349793699,1737432648855,-500.0,0.00020547,2]
[349793700,1737432648865,-508.18,0.00020547,2]
[349793701,1737432648875,-500.0,0.00020547,2]
[349793702,1737432648885,-508.11,0.00020547,2]
[349793703,1737432648896,-500.0,0.00020547,2]
[349793704,1737432648907,-500.0,0.00020547,2]
[349793705,1737432648917,-500.0,0.00020547,2]
[349793706,1737432648928,-500.0,0.00020547,2]
[349793707,1737432648939,-1648.26,0.00020547,2]
[349793708,1737432648949,-500.0,0.00020547,2]
[349793709,1737432648959,-624.75,0.00020547,2]
[349793710,1737432648969,-500.0,0.00020547,2]
[349793711,1737432648979,-740.04,0.00020547,2]
[349793712,1737432648990,-500.0,0.00020547,2]
[349793713,1737432649000,-993.89,0.00020547,2]
[349793714,1737432649011,-500.0,0.00020547,2]
[349793715,1737432649023,-560.18,0.00020547,2]
[349793716,1737432649034,-788.74,0.00020547,2]
[349793717,1737432649044,-759.61,0.00020547,2]
[349793718,1737432649055,-972.7,0.00020547,2]
[349793719,1737432649065,-1457.72,0.00020547,2]
[349793720,1737432649075,-500.0,0.00020547,2]
[349793721,1737432649085,-669.01,0.00020547,2]
[349793722,1737432649095,-256.41441985,0.00020547,2]
[349793723,1737432649105,-2287.02,0.00020547,2]
[349793724,1737432649116,-607.03,0.00020547,2]
[349793725,1737432649127,-1000.0,0.00020547,2]
[349793726,1737432649137,-500.0,0.00020547,2]
[349793727,1737432649147,-1081.63,0.00020547,2]
[349793728,1737432649157,-768.56,0.00020547,2]
[349793729,1737432649167,-500.0,0.00020547,2]
[349793730,1737432649178,-500.0,0.00020547,2]
[349793731,1737432649188,-1275.07,0.00020547,2]
[349793732,1737432649199,-1521.43,0.00020547,2]
[349793733,1737432649209,-500.0,0.00020547,2]
[349793734,1737432649219,-500.0,0.00020547,2]
[349793735,1737432649229,-887.73,0.00020547,2]
[349793736,1737432649238,-2034.25,0.00020547,2]
[349793737,1737432649248,-988.46,0.00020547,2]
[349793738,1737432649258,-500.0,0.00020547,2]
[349793739,1737432649267,-501.3,0.00020547,2]
[349793740,1737432649277,-573.48,0.00020547,2]
[349793741,1737432649287,-659.84,0.00020547,2]
[349793742,1737432649297,-500.0,0.00020547,2]
[349793743,1737432649308,-1005.69,0.00020547,2]
[349793744,1737432649319,-509.42798266,0.00020547,2]
[349793745,1737432649329,-538.47335286,0.00020547,2]
[349793746,1737432649339,-500.0,0.00020547,2]
[349793747,1737432649350,-1337.02,0.00020547,2]
[349793748,1737432649363,-500.0,0.00020547,2]
[349793749,1737432649374,-729.86,0.00020547,2]
[349793750,1737432649385,-500.0,0.00020547,2]
[349793751,1737432649395,-515.77477692,0.00020547,2]
[349793752,1737432649406,-500.0,0.00020547,2]
[349793753,1737432649416,-747.75,0.00020547,2]
[349793754,1737432649428,-500.0,0.00020547,2]
[349793755,1737432649439,-500.0,0.00020547,2]
[349793756,1737432649449,-500.0,0.00020547,2]
[349793757,1737432649459,-500.0,0.00020547,2]
[349793758,1737432649469,-596.34,0.00020547,2]
[349793759,1737432649479,-500.0,0.00020547,2]
[349793760,1737432649490,-500.0,0.00020547,2]
[349793761,1737432649500,-591.36870278,0.00020547,2]
[349793762,1737432649511,-500.0,0.00020547,2]
[349793763,1737432649520,-886.65,0.00020547,2]
[349793764,1737432649530,-500.0,0.00020547,2]
[349793765,1737432649540,-529.55,0.00020547,2]
[349793766,1737432649550,-511.37629887,0.00020547,2]
[349793767,1737432649559,-500.0,0.00020547,2]
[349793768,1737432649569,-500.0,0.00020547,2]
[349793769,1737432649579,-500.0,0.00020547,2]
[349793770,1737432649589,-500.0,0.00020547,2]
[349793771,1737432649599,-500.0,0.00020547,2]
[349793772,1737432649608,-500.0,0.00020547,2]
[349793773,1737432649618,-500.0,0.00020547,2]
[349793774,1737432649628,-500.0,0.00020547,2]
[349793775,1737432649638,-1216.28,0.00020547,2]
[349793776,1737432649649,-500.0,0.00020547,2]
[349793777,1737432649659,-695.84,0.00020547,2]
[349793778,1737432649668,-558.73,0.00020547,2]
[349793779,1737432649679,-750.64,0.00020547,2]
[349793780,1737432649689,-500.0,0.00020547,2]
[349793781,1737432649699,-500.0,0.00020547,2]
[349793782,1737432649709,-1200.1,0.00020547,2]
[349793783,1737432649719,-500.0,0.00020547,2]
[349793784,1737432649728,-1307.11,0.00020547,2]
[349793785,1737432649738,-500.0,0.00020547,2]
[349793786,1737432649748,-162.67637772,0.00020626,2]
[349793787,1737432649761,-3984.0,0.00020814,2]
[349793788,1737432649771,-150.665,0.00020814,2]
[349793789,1737432649780,-500.0,0.0002082,2]
[349793790,1737432649791,-500.0,0.0002082,2]
[349793791,1737432649800,-401.5,0.0002082,2]
[349793792,1737432649810,-500.0,0.0002082,2]
[349793793,1737432649819,-675.95,0.0002082,2]
[349793794,1737432649830,-500.0,0.0002082,2]
[349793795,1737432649839,-500.0,0.0002082,2]
[349793796,1737432649849,-776.79,0.0002082,2]
[349793797,1737432649859,-701.33,0.0002082,2]
[349793798,1737432649869,-512.14,0.0002082,2]
[349793799,1737432649878,-500.0,0.0002082,2]
[349793800,1737432649887,-500.0,0.0002082,2]
[349793801,1737432649897,-500.0,0.0002082,2]
[349793802,1737432649906,-779.3,0.0002082,2]
[349793803,1737432649915,-894.95,0.0002082,2]
[349793804,1737432649927,-777.11,0.0002082,2]
[349793805,1737432649937,-500.0,0.0002082,2]
[349793806,1737432649947,-500.0,0.0002082,2]
[349793807,1737432649956,-611.75200904,0.0002082,2]
[349793808,1737432649966,-824.87,0.0002082,2]
[349793809,1737432649975,-637.74,0.0002082,2]
[349793810,1737432649985,-500.0,0.00020821,2]
[349793811,1737432649995,-500.0,0.00020821,2]
[349793812,1737432650005,-500.0,0.00020821,2]
[349793813,1737432650014,-500.0,0.00020821,2]
[349793814,1737432650024,-540.16,0.00020821,2]
[349793815,1737432650034,-500.0,0.00020821,2]
[349793816,1737432650044,-500.0,0.00020821,2]
[349793817,1737432650053,-500.0,0.00020821,2]
[349793818,1737432650063,-500.0,0.00020821,2]
[349793819,1737432650288,-500.0,0.00020821,2]
[349793820,1737432650297,-484.97377561,0.00020821,2]
[349793821,1737432650307,-500.0,0.00020821,2]
[349793822,1737432650316,-500.0,0.00020821,2]
[349793823,1737432650326,-500.0,0.00020821,2]
[349793824,1737432650335,-500.0,0.00020821,2]
[349793825,1737432650344,-595.05,0.00020821,2]
[349793826,1737432650356,-531.41739739,0.00020821,2]
[349793827,1737432650366,-500.0,0.00020821,2]
[349793828,1737432650375,-500.0,0.00020821,2]
[349793829,1737432650385,-420.24615891,0.00020821,2]
[349793830,1737432650395,-580.87,0.00020821,2]
[349793831,1737432650404,-500.0,0.00020821,2]
[349793832,1737432650414,-517.54861192,0.00020821,2]
[349793833,1737432650424,-500.0,0.00020821,2]
[349793834,1737432650438,-500.0,0.00020821,2]
[349793835,1737432650447,-496.0,0.00020821,2]
[349793836,1737432650457,-500.0,0.00020821,2]
[349793837,1737432650466,-532.54690124,0.00020821,2]
[349793838,1737432650476,-500.0,0.00020821,2]
[349793839,1737432650485,-500.0,0.00020821,2]
[349793840,1737432650495,-500.0,0.00020821,2]
[349793841,1737432650505,-507.9647397,0.00020821,2]
[349793842,1737432650515,-500.0,0.00020821,2]
[349793843,1737432650524,-500.0,0.00020821,2]
[349793844,1737432650533,-156.259577,0.00020821,2]
[349793845,1737432650543,-500.0,0.00020821,2]
[349793846,1737432650552,-507.60288217,0.00020821,2]
[349793847,1737432650562,-519.83565101,0.00020821,2]
[349793848,1737432650571,-500.0,0.00020821,2]
[349793849,1737432650580,-500.0,0.00020821,2]
[349793850,1737432650590,-808.01,0.00020821,2]
[349793851,1737432650600,-339.06785259,0.00020821,2]
[349793852,1737432650609,-500.0,0.00020821,2]
[349793853,1737432650619,-500.0,0.00020821,2]
[349793854,1737432650628,-666.67,0.00020821,2]
[349793855,1737432650637,-500.0,0.00020821,2]
[349793856,1737432650647,-500.0,0.00020821,2]
[349793857,1737432650656,-500.0,0.00020821,2]
[349793858,1737432650666,-500.0,0.00020821,2]
[349793859,1737432650675,-500.0,0.00020821,2]
[349793860,1737432650686,-500.0,0.00020821,2]
[349793861,1737432650696,-392.18,0.00020821,2]
[349793862,1737432650705,-500.0,0.00020821,2]
[349793863,1737432650715,-500.0,0.00020821,2]
[349793864,1737432650724,-1046.1,0.00020821,2]
[349793865,1737432650734,-500.0,0.00020821,2]
[349793866,1737432650744,-500.0,0.00020821,2]
[349793867,1737432650754,-500.0,0.00020821,2]
[349793868,1737432650764,-500.0,0.00020821,2]
[349793869,1737432650773,-500.0,0.00020821,2]
[349793870,1737432650782,-500.0,0.00020821,2]
[349793871,1737432650792,-500.0,0.00020821,2]
[349793872,1737432650801,-500.0,0.00020821,2]
[349793873,1737432650810,-500.0,0.00020821,2]
[349793874,1737432650820,-500.0,0.00020821,2]
[349793875,1737432650830,-500.0,0.00020821,2]
[349793876,1737432650839,-500.0,0.00020821,2]
[349793877,1737432650848,-500.0,0.00020821,2]
[349793878,1737432650857,-500.0,0.00020821,2]
[349793879,1737432650866,-1411.35,0.00020821,2]
[349793880,1737432650875,-500.0,0.00020821,2]
[349793881,1737432650884,-500.0,0.00020821,2]
[349793882,1737432650893,-500.0,0.00020821,2]
[349793883,1737432650903,-500.0,0.00020821,2]
[349793884,1737432650912,-2323.97,0.00020821,2]
[349793885,1737432650920,-698.93,0.00020821,2]
[349793886,1737432650931,-568.32,0.00020821,2]
[349793887,1737432650940,-500.0,0.00020821,2]
[349793888,1737432650949,-629.61,0.00020821,2]
[349793889,1737432650958,-1062.05,0.00020821,2]
[349793890,1737432650967,-500.0,0.00020821,2]
[349793891,1737432650976,-1089.28,0.00020821,2]
[349793892,1737432650985,-333.19629098,0.00020821,2]
[349793893,1737432650995,-500.0,0.00020821,2]
[349793894,1737432651003,-500.0,0.00020821,2]
[349793895,1737432651013,-500.0,0.00020821,2]
[349793896,1737432651022,-500.0,0.00020821,2]
[349793897,1737432651031,-1264.66,0.00020821,2]
[349793898,1737432651042,-500.0,0.00020821,2]
[349793899,1737432651051,-508.18,0.00020821,2]
[349793900,1737432651060,-500.0,0.00020821,2]
[349793901,1737432651070,-508.11,0.00020821,2]
[349793902,1737432651079,-500.0,0.00020821,2]
[349793903,1737432651089,-500.0,0.00020821,2]
[349793904,1737432651099,-500.0,0.00020821,2]
[349793905,1737432651108,-500.0,0.00020821,2]
[349793906,1737432651118,-1648.26,0.00020821,2]
[349793907,1737432651127,-500.0,0.00020821,2]
[349793908,1737432651137,-624.75,0.00020821,2]
[349793909,1737432651147,-500.0,0.00020821,2]
[349793910,1737432651156,-740.04,0.00020821,2]
[349793911,1737432651166,-500.0,0.00020821,2]
[349793912,1737432651175,-993.89,0.00020821,2]
[349793913,1737432651188,-500.0,0.00020821,2]
[349793914,1737432651197,-560.18,0.00020821,2]
[349793915,1737432651207,-788.74,0.00020821,2]
[349793916,1737432651217,-759.61,0.00020821,2]
[349793917,1737432651227,-972.7,0.00020821,2]
[349793918,1737432651236,-1457.72,0.00020821,2]
[349793919,1737432651246,-500.0,0.00020821,2]
[349793920,1737432651259,-669.01,0.00020821,2]
[349793921,1737432651268,-2287.02,0.00020821,2]
[349793922,1737432651278,-607.03,0.00020821,2]
[349793923,1737432651287,-1000.0,0.00020821,2]
[349793924,1737432651297,-500.0,0.00020821,2]
[349793925,1737432651306,-1081.63,0.00020821,2]
[349793926,1737432651315,-768.56,0.00020821,2]
[349793927,1737432651325,-500.0,0.00020821,2]
[349793928,1737432651335,-500.0,0.00020821,2]
[349793929,1737432651344,-1275.07,0.00020821,2]
[349793930,1737432651353,-1521.43,0.00020821,2]
[349793931,1737432651364,-500.0,0.00020821,2]
[349793932,1737432651374,-500.0,0.00020821,2]
[349793933,1737432651384,-887.73,0.00020821,2]
[349793934,1737432651394,-2034.25,0.00020821,2]
[349793935,1737432651403,-988.46,0.00020821,2]
[349793936,1737432651413,-500.0,0.00020821,2]
[349793937,1737432651423,-501.3,0.00020821,2]
[349793938,1737432651435,-573.48,0.00020821,2]
[349793939,1737432651443,-659.84,0.00020821,2]
[349793940,1737432651453,-500.0,0.00020821,2]
[349793941,1737432651463,-1005.69,0.00020821,2]
[349793942,1737432651472,-500.0,0.00020821,2]
[349793943,1737432651481,-1337.02,0.00020821,2]
[349793944,1737432651491,-500.0,0.00020821,2]
[349793945,1737432651500,-729.86,0.00020821,2]
[349793946,1737432651509,-500.0,0.00020821,2]
[349793947,1737432651518,-500.0,0.00020821,2]
[349793948,1737432651527,-747.75,0.00020821,2]
[349793949,1737432651537,-500.0,0.00020821,2]
[349793950,1737432651547,-500.0,0.00020821,2]
[349793951,1737432651556,-500.0,0.00020821,2]
[349793952,1737432651565,-500.0,0.00020821,2]
[349793953,1737432651574,-596.34,0.00020821,2]
[349793954,1737432651584,-500.0,0.00020821,2]
[349793955,1737432651593,-500.0,0.00020821,2]
[349793956,1737432651603,-500.0,0.00020821,2]
[349793957,1737432651612,-886.65,0.00020821,2]
[349793958,1737432651622,-500.0,0.00020821,2]
[349793959,1737432651631,-529.55,0.00020821,2]
[349793960,1737432651641,-500.0,0.00020821,2]
[349793961,1737432651651,-500.0,0.00020821,2]
[349793962,1737432651661,-500.0,0.00020821,2]
[349793963,1737432651670,-500.0,0.00020821,2]
[349793964,1737432651683,-500.0,0.00020821,2]
[349793965,1737432651695,-500.0,0.00020821,2]
[349793966,1737432651705,-500.0,0.00020821,2]
[349793967,1737432651714,-500.0,0.00020821,2]
[349793968,1737432651724,-1216.28,0.00020821,2]
[349793969,1737432651733,-500.0,0.00020821,2]
[349793970,1737432651742,-695.84,0.00020821,2]
[349793971,1737432651755,-558.73,0.00020821,2]
[349793972,1737432651764,-750.64,0.00020821,2]
[349793973,1737432651773,-500.0,0.00020821,2]
[349793974,1737432651783,-500.0,0.00020821,2]
[349793975,1737432651793,-1200.1,0.00020821,2]
[349793976,1737432651803,-500.0,0.00020821,2]
[349793977,1737432651812,-1307.11,0.00020821,2]
[349793978,1737432651822,-500.0,0.00020821,2]
[349793979,1737432651832,-152.0,0.00020835,3]
[349793980,1737432651841,-420.0,0.00020899,2]
[349793981,1737432651850,-161.368,0.000209,2]
[349793982,1737432651860,-500.0,0.00021094,2]
[349793983,1737432651870,-500.0,0.00021094,2]
[349793984,1737432651879,-500.0,0.00021094,2]
[349793985,1737432651888,-675.95,0.00021094,2]
[349793986,1737432651897,-500.0,0.00021094,2]
[349793987,1737432651906,-500.0,0.00021094,2]
[349793988,1737432651915,-776.79,0.00021094,2]
[349793989,1737432651925,-701.33,0.00021094,2]
[349793990,1737432651939,-512.14,0.00021094,2]
[349793991,1737432651948,-500.0,0.00021094,2]
[349793992,1737432651957,-500.0,0.00021094,2]
[349793993,1737432651967,-500.0,0.00021094,2]
[349793994,1737432651976,-779.3,0.00021094,2]
[349793995,1737432651986,-894.95,0.00021094,2]
[349793996,1737432651996,-777.11,0.00021094,2]
[349793997,1737432652005,-500.0,0.00021094,2]
[349793998,1737432652014,-500.0,0.00021094,2]
[349793999,1737432652023,-824.87,0.00021094,2]
[349794000,1737432652033,-637.74,0.00021094,2]
[349794001,1737432652042,-500.0,0.00021095,2]
[349794002,1737432652051,-524.83819179,0.00021095,2]
[349794003,1737432652061,-500.0,0.00021095,2]
[349794004,1737432652071,-540.16,0.00021095,2]
[349794005,1737432652080,-500.0,0.00021095,2]
[349794006,1737432652089,-530.29743495,0.00021095,2]
[349794007,1737432652098,-500.0,0.00021095,2]
[349794008,1737432652107,-500.0,0.00021095,2]
[349794009,1737432652116,-541.09205547,0.00021095,2]
[349794010,1737432652125,-500.0,0.00021095,2]
[349794011,1737432652135,-500.0,0.00021095,2]
[349794012,1737432652144,-500.0,0.00021095,2]
[349794013,1737432652153,-500.0,0.00021095,2]
[349794014,1737432652162,-595.05,0.00021095,2]
[349794015,1737432652171,-500.0,0.00021095,2]
[349794016,1737432652183,-500.0,0.00021095,2]
[349794017,1737432652194,-580.87,0.00021095,2]
[349794018,1737432652203,-525.22473971,0.00021095,2]
[349794019,1737432652212,-515.30644978,0.00021095,2]
[349794020,1737432652221,-500.0,0.00021095,2]
[349794021,1737432652230,-512.13213624,0.00021095,2]
[349794022,1737432652239,-500.0,0.00021095,2]
[349794023,1737432652248,-157.93438,0.00021095,2]
[349794024,1737432652258,-500.0,0.00021095,2]
[349794025,1737432652267,-500.0,0.00021095,2]
[349794026,1737432652276,-500.0,0.00021095,2]
[349794027,1737432652286,-500.0,0.00021095,2]
[349794028,1737432652295,-156.259577,0.00021095,2]
[349794029,1737432652304,-500.0,0.00021095,2]
[349794030,1737432652313,-500.0,0.00021095,2]
[349794031,1737432652322,-500.0,0.00021095,2]
[349794032,1737432652331,-808.01,0.00021095,2]
[349794033,1737432652340,-500.0,0.00021095,2]
[349794034,1737432652349,-500.0,0.00021095,2]
[349794035,1737432652359,-666.67,0.00021095,2]
[349794036,1737432652368,-500.0,0.00021095,2]
[349794037,1737432652378,-500.0,0.00021095,2]
[349794038,1737432652387,-500.0,0.00021095,2]
[349794039,1737432652397,-500.0,0.00021095,2]
[349794040,1737432652406,-500.0,0.00021095,2]
[349794041,1737432652415,-500.0,0.00021095,2]
[349794042,1737432652424,-392.18,0.00021095,2]
[349794043,1737432652435,-500.0,0.00021095,2]
[349794044,1737432652444,-500.0,0.00021095,2]
[349794045,1737432652453,-1046.1,0.00021095,2]
[349794046,1737432652463,-500.0,0.00021095,2]
[349794047,1737432652472,-500.0,0.00021095,2]
[349794048,1737432652481,-500.0,0.00021095,2]
[349794049,1737432652491,-500.0,0.00021095,2]
[349794050,1737432652500,-500.0,0.00021095,2]
[349794051,1737432652510,-500.0,0.00021095,2]
[349794052,1737432652520,-500.0,0.00021095,2]
[349794053,1737432652529,-500.0,0.00021095,2]
[349794054,1737432652543,-500.0,0.00021095,2]
[349794055,1737432652552,-500.0,0.00021095,2]
[349794056,1737432652562,-500.0,0.00021095,2]
[349794057,1737432652634,-500.0,0.00021095,2]
[349794058,1737432652644,-500.0,0.00021095,2]
[349794059,1737432652653,-500.0,0.00021095,2]
[349794060,1737432652662,-1411.35,0.00021095,2]
[349794061,1737432652672,-500.0,0.00021095,2]
[349794062,1737432652683,-500.0,0.00021095,2]
[349794063,1737432652692,-500.0,0.00021095,2]
[349794064,1737432652701,-207.88012706,0.00021095,2]
[349794065,1737432652711,-2323.97,0.00021095,2]
[349794066,1737432652720,-698.93,0.00021095,2]
[349794067,1737432652729,-568.32,0.00021095,2]
[349794068,1737432652739,-500.0,0.00021095,2]
[349794069,1737432652748,-629.61,0.00021095,2]
[349794070,1737432652762,-1062.05,0.00021095,2]
[349794071,1737432652771,-500.0,0.00021095,2]
[349794072,1737432652780,-1089.28,0.00021095,2]
[349794073,1737432652789,-500.0,0.00021095,2]
[349794074,1737432652799,-500.0,0.00021095,2]
[349794075,1737432652808,-500.0,0.00021095,2]
[349794076,1737432652817,-500.0,0.00021095,2]
[349794077,1737432652827,-1264.66,0.00021095,2]
[349794078,1737432652836,-500.0,0.00021095,2]
[349794079,1737432652846,-508.18,0.00021095,2]
[349794080,1737432652855,-500.0,0.00021095,2]
[349794081,1737432652863,-508.11,0.00021095,2]
[349794082,1737432652873,-500.0,0.00021095,2]
[349794083,1737432652882,-500.0,0.00021095,2]
[349794084,1737432652891,-500.0,0.00021095,2]
[349794085,1737432652900,-500.0,0.00021095,2]
[349794086,1737432652909,-1648.26,0.00021095,2]
[349794087,1737432652919,-500.0,0.00021095,2]
[349794088,1737432652929,-624.75,0.00021095,2]
[349794089,1737432652941,-500.0,0.00021095,2]
[349794090,1737432652950,-740.04,0.00021095,2]
[349794091,1737432652959,-500.0,0.00021095,2]
[349794092,1737432652969,-993.89,0.00021095,2]
[349794093,1737432652978,-500.0,0.00021095,2]
[349794094,1737432652987,-560.18,0.00021095,2]
[349794095,1737432652996,-788.74,0.00021095,2]
[349794096,1737432653006,-759.61,0.00021095,2]
[349794097,1737432653015,-972.7,0.00021095,2]
[349794098,1737432653024,-1457.72,0.00021095,2]
[349794099,1737432653034,-500.0,0.00021095,2]
[349794100,1737432653043,-669.01,0.00021095,2]
[349794101,1737432653052,-2287.02,0.00021095,2]
[349794102,1737432653062,-607.03,0.00021095,2]
[349794103,1737432653071,-1000.0,0.00021095,2]
[349794104,1737432653081,-500.0,0.00021095,2]
[349794105,1737432653090,-1081.63,0.00021095,2]
[349794106,1737432653099,-768.56,0.00021095,2]
[349794107,1737432653108,-500.0,0.00021095,2]
[349794108,1737432653117,-500.0,0.00021095,2]
[349794109,1737432653126,-1275.07,0.00021095,2]
[349794110,1737432653135,-1521.43,0.00021095,2]
[349794111,1737432653145,-500.0,0.00021095,2]
[349794112,1737432653154,-500.0,0.00021095,2]
[349794113,1737432653163,-887.73,0.00021095,2]
[349794114,1737432653173,-2034.25,0.00021095,2]
[349794115,1737432653184,-988.46,0.00021095,2]
[349794116,1737432653193,-500.0,0.00021095,2]
[349794117,1737432653202,-501.3,0.00021095,2]
[349794118,1737432653211,-573.48,0.00021095,2]
[349794119,1737432653220,-659.84,0.00021095,2]
[349794120,1737432653229,-500.0,0.00021095,2]
[349794121,1737432653238,-1005.69,0.00021095,2]
[349794122,1737432653247,-500.0,0.00021095,2]
[349794123,1737432653256,-1337.02,0.00021095,2]
[349794124,1737432653265,-500.0,0.00021095,2]
[349794125,1737432653275,-729.86,0.00021095,2]
[349794126,1737432653284,-500.0,0.00021095,2]
[349794127,1737432653293,-500.0,0.00021095,2]
[349794128,1737432653302,-747.75,0.00021095,2]
[349794129,1737432653311,-500.0,0.00021095,2]
[349794130,1737432653320,-500.0,0.00021095,2]
[349794131,1737432653329,-500.0,0.00021095,2]
[349794132,1737432653339,-500.0,0.00021095,2]
[349794133,1737432653349,-596.34,0.00021095,2]
[349794134,1737432653359,-500.0,0.00021095,2]
[349794135,1737432653368,-500.0,0.00021095,2]
[349794136,1737432653377,-500.0,0.00021095,2]
[349794137,1737432653386,-886.65,0.00021095,2]
[349794138,1737432653396,-500.0,0.00021095,2]
[349794139,1737432653405,-529.55,0.00021095,2]
[349794140,1737432653415,-500.0,0.00021095,2]
[349794141,1737432653424,-500.0,0.00021095,2]
[349794142,1737432653436,-500.0,0.00021095,2]
[349794143,1737432653446,-500.0,0.00021095,2]
[349794144,1737432653456,-500.0,0.00021095,2]
[349794145,1737432653465,-500.0,0.00021095,2]
[349794146,1737432653474,-500.0,0.00021095,2]
[349794147,1737432653483,-500.0,0.00021095,2]
[349794148,1737432653493,-1216.28,0.00021095,2]
[349794149,1737432653502,-500.0,0.00021095,2]
[349794150,1737432653511,-695.84,0.00021095,2]
[349794151,1737432653521,-558.73,0.00021095,2]
[349794152,1737432653530,-750.64,0.00021095,2]
[349794153,1737432653539,-500.0,0.00021095,2]
[349794154,1737432653549,-500.0,0.00021095,2]
[349794155,1737432653559,-1200.1,0.00021095,2]
[349794156,1737432653568,-500.0,0.00021095,2]
[349794157,1737432653577,-1307.11,0.00021095,2]
[349794158,1737432653587,-500.0,0.00021095,2]
[349794159,1737432653596,-526.64962796,0.00021195,2]
[349794160,1737432653605,-162.67637772,0.00021263,2]
[349794161,1737432653615,-500.0,0.00021368,2]
[349794162,1737432653624,-500.0,0.00021368,2]
[349794163,1737432653633,-500.0,0.00021368,2]
[349794164,1737432653642,-675.95,0.00021368,2]
[349794165,1737432653651,-500.0,0.00021368,2]
[349794166,1737432653661,-500.0,0.00021368,2]
[349794167,1737432653670,-776.79,0.00021368,2]
[349794168,1737432653682,-701.33,0.00021368,2]
[349794169,1737432653692,-512.14,0.00021368,2]
[349794170,1737432653701,-500.0,0.00021368,2]
[349794171,1737432653711,-500.0,0.00021368,2]
[349794172,1737432653721,-500.0,0.00021368,2]
[349794173,1737432653731,-779.3,0.00021368,2]
[349794174,1737432653741,-894.95,0.00021368,2]
[349794175,1737432653753,-777.11,0.00021368,2]
[349794176,1737432653765,-500.0,0.00021368,2]
[349794177,1737432653774,-500.0,0.00021368,2]
[349794178,1737432653783,-824.87,0.00021368,2]
[349794179,1737432653793,-637.74,0.00021368,2]
[349794180,1737432653804,-500.0,0.00021369,2]
[349794181,1737432653813,-500.0,0.00021369,2]
[349794182,1737432653824,-540.16,0.00021369,2]
[349794183,1737432653834,-500.0,0.00021369,2]
[349794184,1737432653843,-500.0,0.00021369,2]
[349794185,1737432653852,-500.0,0.00021369,2]
[349794186,1737432653861,-556.23328572,0.00021369,2]
[349794187,1737432653870,-500.0,0.00021369,2]
[349794188,1737432653879,-500.0,0.00021369,2]
[349794189,1737432653889,-576.26319098,0.00021369,2]
[349794190,1737432653898,-595.05,0.00021369,2]
[349794191,1737432653907,-500.0,0.00021369,2]
[349794192,1737432653916,-500.0,0.00021369,2]
[349794193,1737432653926,-580.87,0.00021369,2]
[349794194,1737432653938,-316.3,0.00021369,2]
[349794195,1737432653948,-500.0,0.00021369,2]
[349794196,1737432653957,-157.93438,0.00021369,2]
[349794197,1737432653967,-500.0,0.00021369,2]